bitfinex/quotes_SOLUSD_20250126
["timestamp","ask_amount","ask_price","bid_price","bid_amount"]
[1737888039802,8.51877728,253.23,253.09,3.9511]
[1737888040110,8.51877728,253.21,253.09,3.9511]
[1737888040311,8.51877728,253.23,253.09,3.9511]
[1737888043016,8.51877728,253.25,253.09,3.9511]
[1737888043219,3.9485,253.26,253.09,14.829]
[1737888043930,32.29566128,253.25,253.09,13.829]
[1737888044120,12.46787728,253.23,253.08,0.03]
[1737888045302,12.46787728,253.23,253.08,3.9813]
[1737888046941,12.46787728,253.23,253.08,0.03]
[1737888049026,20.0,253.2,253.08,0.03]
[1737888049345,3.9495,253.2,253.08,0.03]
[1737888052716,3.9497,253.18,253.08,0.03]
[1737888054333,12.46797728,253.21,253.08,0.03]
[1737888055842,8.51877728,253.23,253.08,0.03]
[1737888056026,20.0,253.24,253.09,1.6443]
[1737888056336,20.0,253.24,253.1,6.5196]
[1737888056628,3.9486,253.26,253.1,6.5196]
[1737888057334,3.9486,253.26,253.11,3.9508]
[1737888058531,23.776884,253.25,253.11,3.9508]
[1737888058724,3.9488,253.24,253.11,3.9508]
[1737888061132,3.9481,253.28,253.11,13.8279]
[1737888064813,5.45013517,253.27,253.11,13.8279]
[1737888065011,0.063,253.24,253.11,13.8279]
[1737888067052,0.063,253.24,253.12,3.05856528]
[1737888067223,0.063,253.24,253.14,1.0]
[1737888067536,0.063,253.24,253.2,1.6636]
[1737888068221,0.063,253.24,253.21,3.9492]
[1737888069826,5.45013517,253.41,253.22,1.0]
[1737888070019,25.45013517,253.41,253.23,1.6636]
[1737888070216,25.45013517,253.41,253.24,3.9488]
[1737888070217,5.45013517,253.37,253.24,3.9488]
[1737888071554,3.9466,253.38,253.24,3.9488]
[1737888075245,33.641884,253.42,253.24,3.9488]
[1737888075246,3.9469,253.36,253.24,3.9488]
[1737888075444,3.9469,253.36,253.23,1.6636]
[1737888075653,5.45013517,253.35,253.23,1.6636]
[1737888076664,5.45013517,253.33,253.23,1.6636]
[1737888077739,3.9475,253.32,253.23,1.6636]
[1737888078967,27.724584,253.31,253.23,1.6636]
[1737888079169,33.17471917,253.31,253.23,1.6636]
[1737888080275,9.39783517,253.31,253.23,1.6636]
[1737888080652,33.17471917,253.31,253.23,1.6636]
[1737888081252,5.45013517,253.29,253.15,1.6062]
[1737888082268,5.45013517,253.31,253.16,3.95]
[1737888082466,3.9476,253.32,253.16,13.8251]
[1737888082770,3.9476,253.32,253.17,7.8007]
[1737888083142,3.9474,253.33,253.17,7.8007]
[1737888083871,3.9474,253.33,253.18,1.6062]
[1737888084575,3.9474,253.33,253.19,3.9496]
[1737888084949,9.39753517,253.33,253.19,3.9496]
[1737888087785,9.46033517,253.35,253.19,13.8236]
[1737888088166,4.0102,253.35,253.19,14.8236]
[1737888088364,0.063,253.35,253.2,1.5105]
[1737888089575,0.063,253.35,253.21,13.8224]
[1737888094077,0.063,253.35,253.22,8.8598]
[1737888094284,0.063,253.35,253.23,1.0]
[1737888094580,0.063,253.35,253.24,1.5105]
[1737888094963,0.063,253.35,253.25,13.8202]
[1737888095771,0.063,253.35,253.26,1.5105]
[1737888096166,0.063,253.35,253.27,13.8191]
[1737888099286,0.063,253.35,253.27,3.9483]
[1737888100374,0.063,253.35,253.27,13.8191]
[1737888102388,0.063,253.35,253.27,3.9483]
[1737888102583,0.063,253.35,253.27,13.8191]
[1737888113115,5.45013517,253.43,253.27,13.8191]
[1737888114790,0.063,253.46,253.28,1.0]
[1737888114973,0.063,253.46,253.29,6.3971]
[1737888115173,0.063,253.46,253.32,20.0]
[1737888115375,0.063,253.46,253.33,1.6663]
[1737888116886,0.063,253.43,253.34,3.9472]
[1737888117503,0.063,253.43,253.34,13.8153]
[1737888118199,0.063,253.43,253.39,1.5677]
[1737888118409,0.063,253.43,253.4,0.3944894]
[1737888119103,0.063,253.43,253.41,3.9461]
[1737888119442,0.063,253.43,253.39,5.514]
[1737888119711,0.063,253.43,253.39,5.5141]
[1737888120180,0.063,253.43,253.39,1.5677]
[1737888121314,0.063,253.43,253.36,3.9468]
[1737888123118,5.45013517,253.4,253.34,3.9471]
[1737888123696,5.45013517,253.4,253.33,1.5384]
[1737888123893,9.39643517,253.4,253.33,1.5384]
[1737888124094,9.39643517,253.4,253.31,3.9476]
[1737888124718,5.45013517,253.4,253.31,3.9476]
[1737888125117,5.45013517,253.38,253.27,1.5384]
[1737888125307,5.45013517,253.38,253.29,3.9479]
[1737888125503,5.45013517,253.41,253.29,3.9479]
[1737888125709,5.45013517,253.42,253.29,3.9479]
[1737888125909,0.063,253.43,253.29,3.9479]
[1737888126105,0.063,253.43,253.33,1.5384]
[1737888126297,0.063,253.43,253.37,21.0]
[1737888126502,0.063,253.43,253.38,0.39449573]
[1737888127317,0.063,253.43,253.39,3.9464]
[1737888127509,0.063,253.43,253.4,0.39449025]
[1737888128232,0.063,253.43,253.41,20.0]
[1737888129621,0.063,253.43,253.42,3.946]
[1737888132931,0.0001,253.43,253.42,27.722884]
[1737888133126,0.0001,253.46,253.45,20.0]
[1737888133828,0.0001,253.46,253.45,23.9455]
[1737888134344,0.0001,253.46,253.45,3.9455]
[1737888135624,0.0001,253.46,253.42,1.5744]
[1737888135930,0.0001,253.46,253.43,3.9458]
[1737888136127,0.0001,253.46,253.45,20.0]
[1737888136430,0.0001,253.46,253.45,26.6334]
[1737888136629,0.0001,253.46,253.45,27.02778798]
[1737888136933,0.0001,253.46,253.45,26.6334]
[1737888137726,0.0001,253.46,253.45,30.5789]
[1737888139028,0.0001,253.46,253.42,1.5744]
[1737888139229,0.0001,253.46,253.43,3.9458]
[1737888139447,0.0001,253.46,253.34,23.9472]
[1737888139635,5.45013517,253.43,253.34,3.9472]
[1737888141131,5.45013517,253.43,253.34,0.03]
[1737888141331,5.45013517,253.45,253.34,0.03]
[1737888141509,0.0001,253.46,253.34,0.03]
[1737888141835,0.0001,253.46,253.34,20.03]
[1737888143008,0.0001,253.46,253.39,1.658]
[1737888143209,0.0001,253.46,253.4,0.39446196]
[1737888145116,0.0001,253.46,253.43,20.0]
[1737888145733,0.0001,253.46,253.41,3.9461]
[1737888152945,28.50085683,253.42,253.36,0.3945171]
[1737888153236,28.50085683,253.42,253.19,0.03]
[1737888153237,8.50085683,253.37,253.27,3.9482]
[1737888153435,8.50085683,253.35,253.27,3.9482]
[1737888153633,8.50085683,253.35,253.28,3.9481]
[1737888154326,8.50085683,253.37,253.28,3.9481]
[1737888154527,8.50085683,253.37,253.24,0.03]
[1737888154726,8.50085683,253.37,253.25,3.9486]
[1737888155839,8.50085683,253.35,253.25,3.9486]
[1737888156036,8.50085683,253.35,253.27,312.0]
[1737888159245,8.50085683,253.35,253.26,3.9484]
[1737888159559,8.50085683,253.35,253.24,0.03]
[1737888160230,32.27774083,253.35,253.24,0.03]
[1737888161524,38.69984083,253.35,253.24,0.03]
[1737888162833,20.0,253.31,253.24,0.03]
[1737888163035,8.50085683,253.25,253.24,0.03]
[1737888167659,32.27774083,253.25,253.24,0.03]
[1737888167851,8.50085683,253.25,253.24,0.03]
[1737888169659,8.50085683,253.27,253.24,0.03]
[1737888172343,8.50085683,253.25,253.24,0.03]
[1737888173742,12.44945683,253.25,253.24,0.03]
[1737888173934,3.9486,253.25,253.24,0.03]
[1737888174138,23.9486,253.25,253.24,0.03]
[1737888174948,20.0,253.25,253.24,0.03]
[1737888176357,1.580112,253.3,253.24,0.03]
[1737888176560,20.0,253.32,253.24,0.03]
[1737888178544,0.063,253.34,253.24,0.03]
[1737888179152,20.063,253.34,253.24,0.03]
[1737888182041,0.063,253.34,253.24,0.03]
[1737888187474,4.0103,253.34,253.24,0.03]
[1737888190165,0.063,253.34,253.24,0.03]
[1737888191565,8.51214234,253.31,253.24,0.03]
[1737888196685,8.51214234,253.29,253.24,0.03]
[1737888196866,8.51214234,253.27,253.24,0.03]
[1737888201586,8.51214234,253.29,253.24,0.03]
[1737888201887,5.44862415,253.29,253.24,0.03]
[1737888202091,5.44862415,253.31,253.24,0.03]
[1737888203792,5.44862415,253.33,253.24,0.03]
[1737888204093,0.063,253.34,253.24,0.03]
[1737888205371,0.063,253.34,253.27,20.0]
[1737888205575,0.063,253.34,253.31,20.0]
[1737888205785,0.063,253.34,253.33,1.5876]
[1737888205971,0.063,253.34,253.27,1.5876]
[1737888206777,4.0103,253.34,253.24,0.03]
[1737888207096,24.0103,253.34,253.24,0.03]
[1737888208297,4.0103,253.34,253.24,0.03]
[1737888216190,0.063,253.34,253.24,0.03]
[1737888216592,4.0102,253.34,253.24,0.03]
[1737888218503,0.063,253.34,253.24,0.03]
[1737888230716,0.063,253.34,253.25,20.0]
[1737888232226,0.063,253.34,253.27,3.9483]
[1737888233503,0.063,253.34,253.27,13.8191]
[1737888235523,0.063,253.34,253.3,23.776884]
[1737888235720,0.063,253.34,253.31,0.39462407]
[1737888236227,0.063,253.34,253.31,0.29462407]
[1737888238031,0.063,253.34,253.32,3.9475]
[1737888240530,0.063,253.34,253.29,23.948]
[1737888241133,0.063,253.34,253.29,3.948]
[1737888241819,5.4441684,253.32,253.24,0.03]
[1737888242046,5.4441684,253.3,253.25,3.9486]
[1737888242727,5.4441684,253.3,253.24,0.03]
[1737888243827,8.51256871,253.3,253.24,0.03]
[1737888246330,8.57556871,253.34,253.24,0.03]
[1737888246514,0.063,253.34,253.29,20.0]
[1737888246716,0.063,253.34,253.3,24.0715422]
[1737888247315,0.063,253.34,253.3,23.776884]
[1737888248437,0.063,253.34,253.31,3.9477]
[1737888252314,0.063,253.34,253.32,23.776884]
[1737888252537,1.5444,253.45,253.35,20.0]
[1737888252719,0.0001,253.46,253.35,20.29454472]
[1737888253237,0.0001,253.46,253.39,20.0]
[1737888253441,0.0001,253.46,253.36,23.776884]
[1737888254644,0.0001,253.46,253.37,3.9467]
[1737888255736,0.0001,253.46,253.31,9.8692]
[1737888255737,23.9454,253.46,253.31,9.8692]
[1737888255941,23.9454,253.46,253.3,3.9478]
[1737888256945,20.0,253.45,253.3,3.9478]
[1737888257121,20.0,253.41,253.27,9.8708]
[1737888257322,1.5138,253.4,253.27,9.8708]
[1737888257532,1.5138,253.4,253.26,20.0]
[1737888258743,1.5138,253.4,253.24,0.03]
[1737888258950,6.1527,253.35,253.25,3.9486]
[1737888259131,6.1527,253.35,253.24,0.03]
[1737888259132,20.0,253.32,253.24,0.03]
[1737888259942,20.0,253.32,253.31,0.03]
[1737888260351,21.5138,253.32,253.31,0.03]
[1737888261127,25.4613,253.32,253.31,0.03]
[1737888265049,21.5138,253.32,253.31,0.03]
[1737888268252,1.5138,253.32,253.31,0.03]
[1737888269352,25.290684,253.32,253.31,0.03]
[1737888274582,1.5138,253.32,253.31,0.03]
[1737888274880,20.0,253.32,253.31,0.03]
[1737888275157,3.9468,253.37,253.31,0.03]
[1737888279175,20.0,253.35,253.31,0.03]
[1737888280061,21.548,253.38,253.31,0.03]
[1737888280261,20.0,253.35,253.31,0.03]
[1737888281869,6.5933,253.41,253.31,0.03]
[1737888282052,20.0,253.41,253.31,0.03]
[1737888282458,20.0,253.4,253.31,0.03]
[1737888282871,23.776884,253.39,253.31,0.03]
[1737888283869,3.9466,253.38,253.31,0.03]
[1737888284063,20.0,253.36,253.31,0.03]
[1737888284963,20.0,253.35,253.31,0.03]
[1737888285350,20.0,253.32,253.31,0.03]
[1737888286248,23.9475,253.32,253.31,0.03]
[1737888286857,47.724384,253.32,253.31,0.03]
[1737888288267,48.724384,253.32,253.31,0.03]
[1737888289256,3.9475,253.32,253.31,0.03]
[1737888289664,43.776884,253.31,253.24,0.03]
[1737888289863,20.0,253.26,253.21,0.03]
[1737888290658,20.0,253.22,253.21,0.03]
[1737888291278,47.725984,253.22,253.21,0.03]
[1737888295256,23.776884,253.21,253.19,0.03]
[1737888295757,3.9491,253.22,253.19,0.03]
[1737888295974,43.776884,253.2,253.19,0.03]
[1737888297058,47.726284,253.2,253.19,0.03]
[1737888298865,47.726284,253.2,253.14,0.03]
[1737888298866,23.776884,253.15,253.14,0.03]
[1737888299373,23.776884,253.17,253.14,0.03]
[1737888299559,20.0,253.15,253.14,0.03]
[1737888300475,44.776884,253.15,253.13,0.0001]
[1737888300777,4.951,253.1,253.09,1.6071]
[1737888300970,43.776884,253.07,253.06,1.445787]
[1737888301155,20.0,253.03,253.0,3.953]
[1737888301359,23.776884,253.02,253.0,3.953]
[1737888301558,20.0,253.07,253.0,3.953]
[1737888301755,23.776884,253.04,253.0,3.953]
[1737888302155,23.776884,253.04,252.93,0.03]
[1737888302156,2.0,253.02,252.93,0.03]
[1737888302354,23.776884,253.0,252.93,0.03]
[1737888302554,13.777084,252.94,252.93,0.0001]
[1737888302772,12.269584,252.94,252.93,0.0001]
[1737888302959,16.223084,252.94,252.93,0.0001]
[1737888303657,20.0,252.96,252.93,0.0001]
[1737888304194,3.9528,252.98,252.94,4.4717]
[1737888304494,23.9528,252.98,252.94,4.4717]
[1737888304861,3.9528,252.98,252.94,4.4717]
[1737888305061,20.0,252.99,252.94,4.4717]
[1737888305691,20.0,253.02,252.94,4.4717]
[1737888306061,23.9518,253.05,252.94,4.4717]
[1737888306461,20.0,253.01,252.94,4.4717]
[1737888307393,21.0,253.08,252.94,4.4717]
[1737888307594,23.9513,253.08,252.94,8.4251]
[1737888307810,20.0,253.08,252.94,18.3088]
[1737888308488,20.0,253.08,252.94,18.3388]
[1737888308795,0.063,253.07,252.94,18.3388]
[1737888309699,0.063,253.07,252.94,13.8671]
[1737888311681,0.063,253.07,252.95,23.776884]
[1737888312886,0.063,253.07,252.96,13.836]
[1737888313193,0.063,253.07,252.97,23.776884]
[1737888313673,0.063,253.07,252.96,13.836]
[1737888314768,0.063,253.07,252.95,23.776884]
[1737888316275,0.063,253.07,252.95,24.776884]
[1737888316471,0.063,253.07,252.99,23.776884]
[1737888316684,0.063,253.07,252.98,20.0]
[1737888316993,0.063,253.07,252.99,9.8818]
[1737888319091,0.063,253.07,252.99,13.8345]
[1737888320492,0.063,253.07,252.94,20.03]
[1737888320493,20.0,253.04,252.94,0.03]
[1737888321378,20.0,253.04,252.94,3.9834]
[1737888321575,2.86203404,253.07,252.94,3.9834]
[1737888321901,0.063,253.07,252.94,3.9834]
[1737888322199,0.063,253.07,252.94,0.03]
[1737888322689,20.0,253.04,252.94,0.03]
[1737888324993,23.952,253.04,252.94,0.03]
[1737888325499,3.952,253.04,252.94,0.03]
[1737888325998,23.9516,253.06,252.94,0.03]
[1737888326998,23.776884,253.05,252.94,0.03]
[1737888327508,3.9516,253.06,252.94,0.03]
[1737888328602,43.776884,253.05,252.94,0.03]
[1737888328800,50.45998458,253.05,252.94,0.03]
[1737888329325,54.41468458,253.05,252.94,0.03]
[1737888329696,20.0,253.01,252.94,0.03]
[1737888330892,3.9525,253.0,252.94,0.03]
[1737888332310,20.0,252.96,252.94,0.03]
[1737888332699,4.20886816,253.01,252.94,0.03]
[1737888332902,20.0,253.01,252.94,0.03]
[1737888333924,3.9525,253.0,252.94,0.03]
[1737888344550,9.8799,253.04,252.94,0.03]
[1737888344551,3.9519,253.04,252.94,0.03]
[1737888344924,23.9519,253.04,252.94,0.03]
[1737888345450,0.063,253.0,252.94,0.03]
[1737888349746,0.063,253.0,252.96,23.776884]
[1737888351047,0.063,253.0,252.98,23.776884]
[1737888353546,0.063,253.0,252.99,3.9527]
[1737888353930,0.063,253.0,252.97,3.9529]
[1737888355153,0.063,253.0,252.98,23.776884]
[1737888355526,0.063,253.0,252.98,20.0]
[1737888356225,0.063,253.0,252.96,3.9531]
[1737888356422,0.063,253.07,252.98,20.0]
[1737888356659,0.063,253.07,253.04,20.0]
[1737888357161,0.063,253.07,253.05,23.776884]
[1737888357728,0.063,253.07,253.06,28.02352613]
[1737888359552,1.5932,253.19,253.06,28.02352613]
[1737888359736,1.5932,253.19,253.06,37.90252613]
[1737888360373,1.5932,253.19,253.07,23.776884]
[1737888360577,1.5932,253.19,253.11,23.776884]
[1737888361440,1.5932,253.19,253.12,3.9506]
[1737888363654,1.5932,253.19,253.13,23.776884]
[1737888365252,6.0569,253.2,253.13,23.776884]
[1737888365561,3.9488,253.24,253.13,23.776884]
[1737888366652,20.0,253.3,253.11,23.776884]
[1737888366851,3.948,253.29,253.13,23.776884]
[1737888367360,3.948,253.29,253.12,23.776884]
[1737888367852,3.948,253.29,253.12,20.0]
[1737888368837,3.948,253.29,253.15,20.0]
[1737888369036,3.948,253.29,253.17,3.9499]
[1737888370131,4.011,253.29,253.14,23.776884]
[1737888370442,4.011,253.29,253.14,27.727184]
[1737888372465,4.011,253.29,253.14,37.603084]
[1737888373568,0.063,253.29,253.14,37.603084]
[1737888373761,0.063,253.29,253.18,23.776884]
[1737888375471,0.063,253.29,253.2,23.776884]
[1737888375766,0.063,253.29,253.19,3.9496]
[1737888376084,4.0111,253.29,253.19,3.9496]
[1737888377266,0.063,253.29,253.18,3.9497]
[1737888377470,0.063,253.29,253.19,23.776884]
[1737888379071,0.063,253.29,253.23,23.776884]
[1737888379272,0.063,253.29,253.26,23.776884]
[1737888379565,0.063,253.33,253.26,23.776884]
[1737888379566,0.063,253.33,253.28,43.776884]
[1737888379764,0.063,253.33,253.29,24.07152104]
[1737888379968,0.063,253.33,253.32,23.776884]
[1737888380181,0.063,253.34,253.33,23.776884]
[1737888380387,0.0001,253.34,253.33,23.776884]
[1737888380674,0.0001,253.34,253.28,20.0]
[1737888380889,0.0001,253.34,253.32,20.0]
[1737888381381,0.0001,253.34,253.33,3.9474]
[1737888382511,0.0001,253.34,253.33,23.9474]
[1737888383107,0.0001,253.34,253.33,49.01885889]
[1737888384095,0.0001,253.34,253.33,47.724284]
[1737888386018,0.0001,253.34,253.33,27.724284]
[1737888386493,0.0001,253.34,253.33,3.9474]
[1737888386697,0.0001,253.34,253.28,3.9481]
[1737888387813,0.0001,253.34,253.25,23.776884]
[1737888388114,0.0001,253.34,253.32,20.0]
[1737888388423,0.0001,253.34,253.33,23.776884]
[1737888389809,0.0001,253.34,253.27,21.0]
[1737888390012,0.0001,253.34,253.28,3.9481]
[1737888390503,0.0001,253.34,253.29,23.776884]
[1737888391189,0.0001,253.34,253.28,3.9481]
[1737888391884,0.0001,253.34,253.24,23.776884]
[1737888392087,0.0001,253.34,253.23,9.8723]
[1737888392695,0.0001,253.34,253.24,23.776884]
[1737888393104,0.0001,253.34,253.25,3.9486]
[1737888394113,0.0001,253.34,253.24,23.776884]
[1737888394615,0.0001,253.34,253.29,0.03]
[1737888400034,1.61,253.33,253.29,0.03]
[1737888407433,1.61,253.33,253.3,20.0]
[1737888407929,1.61,253.33,253.31,3.9477]
[1737888408235,0.0001,253.34,253.32,23.776884]
[1737888410241,0.0001,253.34,253.33,3.9474]
[1737888410744,0.0001,253.34,253.33,47.724284]
[1737888410919,0.0001,253.34,253.33,49.01890277]
[1737888412637,0.0001,253.34,253.33,50.01890277]
[1737888412938,0.063,253.41,253.4,20.0]
[1737888413130,1.61,253.45,253.4,44.07138087]
[1737888414019,1.61,253.45,253.41,23.776884]
[1737888414430,1.61,253.45,253.43,23.776884]
[1737888414826,1.61,253.45,253.44,3.9457]
[1737888416341,0.0001,253.46,253.45,23.776884]
[1737888418444,0.063,253.49,253.47,23.776884]
[1737888418643,0.063,253.49,253.47,24.07125182]
[1737888419044,0.0001,253.49,253.47,24.07125182]
[1737888420327,0.0001,253.49,253.48,23.945]
[1737888420930,0.0001,253.49,253.48,3.945]
[1737888421548,1.2276,253.57,253.48,23.945]
[1737888421927,6.6339,253.56,253.4,9.8657]
[1737888422752,6.6339,253.56,253.41,23.776884]
[1737888422948,3.9439,253.55,253.43,23.776884]
[1737888423146,3.9439,253.55,253.42,3.946]
[1737888423349,6.6339,253.54,253.42,3.946]
[1737888424154,3.9443,253.53,253.4,3.9463]
[1737888424646,3.9443,253.53,253.4,27.723184]
[1737888424647,1.5956,253.52,253.4,27.723184]
[1737888424855,1.5956,253.52,253.33,21.61529619]
[1737888424856,6.6339,253.51,253.33,21.61529619]
[1737888425147,6.6339,253.51,253.37,23.776884]
[1737888426958,3.9447,253.5,253.38,3.9466]
[1737888428063,3.9447,253.5,253.34,3.9472]
[1737888429063,3.9447,253.5,253.35,23.776884]
[1737888429256,1.5956,253.49,253.36,3.9469]
[1737888429459,1.5956,253.47,253.36,3.9469]
[1737888429647,1.5956,253.47,253.33,20.0]
[1737888430637,3.9453,253.46,253.34,23.9472]
[1737888431037,8.2295,253.45,253.34,0.03]
[1737888431366,1.5956,253.44,253.34,0.03]
[1737888432367,1.5956,253.42,253.34,0.03]
[1737888432567,6.6339,253.41,253.34,0.03]
[1737888433076,1.5956,253.4,253.34,0.03]
[1737888434474,3.9464,253.39,253.34,0.03]
[1737888435996,1.5956,253.4,253.34,0.03]
[1737888439256,5.542,253.4,253.34,0.03]
[1737888442577,1.5956,253.4,253.34,0.03]
[1737888443982,1.5956,253.4,253.35,23.776884]
[1737888445489,1.5956,253.4,253.36,3.9469]
[1737888447089,1.5956,253.4,253.37,23.776884]
[1737888447304,7.8147,253.49,253.37,23.776884]
[1737888448476,11.7596,253.49,253.35,23.9471]
[1737888448999,6.2036,253.46,253.35,3.9471]
[1737888449182,1.6111,253.41,253.34,0.03]
[1737888449577,3.9463,253.4,253.23,13.8213]
[1737888449902,7.8147,253.39,253.23,13.8213]
[1737888450203,7.8147,253.39,253.24,23.776884]
[1737888451306,11.7612,253.39,253.25,3.9486]
[1737888451489,11.7612,253.39,253.26,23.776884]
[1737888452513,7.8147,253.39,253.27,13.8191]
[1737888453995,7.8147,253.39,253.22,1.0]
[1737888454302,7.8147,253.39,253.18,2.57021583]
[1737888454303,11.7612,253.39,253.26,20.0]
[1737888454680,11.7612,253.39,253.24,23.776884]
[1737888454899,7.8147,253.39,253.24,23.776884]
[1737888457204,7.8147,253.39,253.26,23.776884]
[1737888458287,7.8147,253.39,253.25,13.8202]
[1737888458485,3.9466,253.38,253.25,13.8202]
[1737888459215,20.0,253.36,253.25,3.9486]
[1737888460180,1.5137,253.35,253.21,9.873]
[1737888460387,5.4608,253.35,253.21,9.873]
[1737888460581,6.6538,253.34,253.21,9.873]
[1737888460786,6.6538,253.34,253.19,27.726484]
[1737888460787,6.6538,253.34,253.2,20.0]
[1737888461595,6.6538,253.34,253.19,3.9496]
[1737888461793,3.9474,253.33,253.16,20.0]
[1737888461996,3.9474,253.33,253.17,23.776884]
[1737888462203,3.9474,253.33,253.16,20.0]
[1737888462507,20.0,253.31,253.17,23.776884]
[1737888463200,23.9478,253.31,253.18,3.9497]
[1737888463511,6.6538,253.34,253.19,23.776884]
[1737888463813,10.601,253.34,253.19,23.776884]
[1737888464501,6.6538,253.34,253.19,24.776884]
[1737888464692,6.6538,253.34,253.23,23.776884]
[1737888465509,6.6538,253.34,253.24,3.9488]
[1737888469091,10.6011,253.34,253.24,3.9488]
[1737888469917,6.6538,253.34,253.24,3.9488]
[1737888472030,6.6538,253.34,253.25,23.776884]
[1737888472315,1.5137,253.35,253.25,23.776884]
[1737888472496,0.063,253.39,253.25,23.776884]
[1737888473220,0.063,253.39,253.25,20.0]
[1737888473398,0.063,253.39,253.27,23.776884]
[1737888474518,0.063,253.39,253.28,13.8185]
[1737888476906,0.063,253.39,253.3,13.8175]
[1737888477106,0.063,253.39,253.31,24.07154588]
[1737888477426,0.063,253.39,253.31,23.776884]
[1737888478513,5.8294,253.46,253.31,23.776884]
[1737888478920,5.8294,253.46,253.31,0.4056]
[1737888479208,5.8294,253.46,253.34,23.776884]
[1737888479415,5.8294,253.46,253.37,20.0]
[1737888481100,5.8294,253.46,253.38,3.9466]
[1737888483429,3.9455,253.45,253.3,3.9478]
[1737888483625,20.0,253.43,253.3,3.9478]
[1737888484128,20.0,253.42,253.3,3.9478]
[1737888484329,1.5612,253.41,253.3,3.9478]
[1737888485108,1.5612,253.41,253.29,0.03]
[1737888485313,3.9463,253.4,253.29,0.03]
[1737888489438,6.2664,253.39,253.29,0.03]
[1737888489734,10.2129,253.39,253.29,0.03]
[1737888492333,6.2664,253.39,253.29,0.03]
[1737888492535,6.2664,253.39,253.33,20.0]
[1737888492712,1.5612,253.41,253.34,23.776884]
[1737888493819,1.5612,253.41,253.34,3.9472]
[1737888497451,20.0,253.39,253.29,0.03]
[1737888498339,3.9466,253.38,253.29,0.03]
[1737888499042,3.9466,253.38,253.32,0.03]
[1737888499248,1.567,253.37,253.32,0.03]
[1737888500341,3.9469,253.36,253.32,0.03]
[1737888508551,1.567,253.37,253.32,0.03]
[1737888513068,5.5138,253.37,253.32,0.03]
[1737888513749,6.57,253.36,253.32,0.03]
[1737888513958,31.346884,253.36,253.29,0.03]
[1737888514155,20.0,253.33,253.29,0.03]
[1737888514968,3.9475,253.32,253.29,0.03]
[1737888515266,23.776884,253.31,253.29,0.03]
[1737888515647,1.5743,253.3,253.29,0.03]
[1737888516249,21.5743,253.3,253.29,0.03]
[1737888516672,26.57,253.29,253.16,3.9499]
[1737888517246,3.9481,253.28,253.16,3.9499]
[1737888518261,26.57,253.29,253.16,3.9499]
[1737888519667,30.518,253.29,253.16,3.9499]
[1737888520371,30.518,253.29,253.15,23.776884]
[1737888521666,30.518,253.29,253.16,3.95]
[1737888522173,6.57,253.29,253.17,23.776884]
[1737888523467,6.57,253.29,253.18,3.9497]